fUST/lending_fUST_20250908
["ID","MTS","AMOUNT","RATE_DAILY","PERIOD"]
[384314719,1757333448798,-480.0,0.00015068,2]
[384314721,1757333448807,-273.45,0.00015068,2]
[384314723,1757333448817,-480.0,0.00015068,2]
[384314725,1757333448826,-152.151679,0.00015068,2]
[384314726,1757333448835,-151.792796,0.00015068,2]
[384314728,1757333448846,-480.0,0.00015068,2]
[384314730,1757333448856,-480.0,0.00015068,2]
[384314736,1757333448894,-490.95943524,0.00015068,2]
[384314738,1757333448903,-428.6,0.00015068,2]
[384314740,1757333448912,-701.87,0.00015068,2]
[384314742,1757333448922,-1161.48,0.00015068,2]
[384314744,1757333448931,-480.0,0.00015068,2]
[384314745,1757333448940,-637.67,0.00015068,2]
[384314747,1757333448950,-480.0,0.00015068,2]
[384314749,1757333448959,-535.75,0.00015068,2]
[384314752,1757333448969,-518.28,0.00015068,2]
[384314754,1757333448979,-480.0,0.00015068,2]
[384314756,1757333448988,-2079.34,0.00015068,2]
[384314758,1757333448998,-407.36,0.00015068,2]
[384314759,1757333449008,-480.0,0.00015068,2]
[384314762,1757333449017,-480.0,0.00015068,2]
[384314764,1757333449027,-440.89,0.00015068,2]
[384314766,1757333449036,-480.0,0.00015068,2]
[384314768,1757333449046,-480.0,0.00015068,2]
[384314770,1757333449055,-480.0,0.00015068,2]
[384314772,1757333449065,-480.0,0.00015068,2]
[384314773,1757333449074,-480.0,0.00015068,2]
[384314775,1757333449083,-417.72814483,0.00015068,2]
[384314778,1757333449093,-480.0,0.00015068,2]
[384314779,1757333449102,-480.0,0.00015068,2]
[384314781,1757333449112,-801.1,0.00015068,2]
[384314784,1757333449121,-480.0,0.00015068,2]
[384314786,1757333449131,-1766.34,0.00015068,2]
[384314787,1757333449141,-480.0,0.00015068,2]
[384314790,1757333449154,-550.02,0.00015068,2]
[384314791,1757333449163,-557.24,0.00015068,2]
[384314794,1757333449172,-480.0,0.00015068,2]
[384314795,1757333449181,-480.0,0.00015068,2]
[384314797,1757333449191,-571.77,0.00015068,2]
[384314800,1757333449203,-480.0,0.00015068,2]
[384314802,1757333449212,-480.0,0.00015068,2]
[384314803,1757333449221,-480.0,0.00015068,2]
[384314806,1757333449233,-480.0,0.00015068,2]
[384314808,1757333449243,-557.335555,0.00015068,2]
[384314809,1757333449252,-720.0,0.00015273,2]
[384314812,1757333449261,-260.0,0.00015308,2]
[384314814,1757333449271,-480.0,0.00015342,2]
[384314815,1757333449280,-218.95,0.00015342,2]
[384314817,1757333449290,-617.4,0.00015342,2]
[384314820,1757333449299,-166.19188371,0.00015342,2]
[384314822,1757333449309,-701.87,0.00015342,2]
[384314824,1757333449318,-1161.48,0.00015342,2]
[384314825,1757333449327,-353.02,0.00015342,2]
[384314827,1757333449336,-637.67,0.00015342,2]
[384314830,1757333449345,-480.0,0.00015342,2]
[384314831,1757333449355,-535.75,0.00015342,2]
[384314834,1757333449365,-151.0,0.00015342,2]
[384314836,1757333449374,-518.28,0.00015342,2]
[384314837,1757333449383,-151.0,0.00015342,2]
[384314840,1757333449393,-480.0,0.00015342,2]
[384314841,1757333449403,-439.236311,0.00015342,2]
[384314844,1757333449412,-151.0,0.00015342,2]
[384314846,1757333449422,-439.236311,0.00015342,2]
[384314847,1757333449431,-151.0,0.00015342,2]
[384314849,1757333449440,-439.236311,0.00015342,2]
[384314852,1757333449450,-151.0,0.00015342,2]
[384314853,1757333449459,-151.0,0.00015342,2]
[384314855,1757333449468,-439.236311,0.00015342,2]
[384314857,1757333449477,-2079.34,0.00015342,2]
[384314859,1757333449486,-204.982899,0.00015342,2]
[384314861,1757333449495,-151.0,0.00015342,2]
[384314863,1757333449505,-574.196076,0.00015342,2]
[384314865,1757333449514,-574.196076,0.00015342,2]
[384314867,1757333449523,-344.46,0.00015342,2]
[384314869,1757333449532,-574.196076,0.00015342,2]
[384314872,1757333449541,-574.196076,0.00015342,2]
[384314873,1757333449551,-480.0,0.00015342,2]
[384314875,1757333449561,-151.0,0.00015342,2]
[384314877,1757333449570,-151.0,0.00015342,2]
[384314879,1757333449579,-151.0,0.00015342,2]
[384314881,1757333449588,-151.0,0.00015342,2]
[384314883,1757333449598,-151.0,0.00015342,2]
[384314884,1757333449607,-153.351688,0.00015342,2]
[384314885,1757333449617,-153.351688,0.00015342,2]
[384314886,1757333449626,-153.351688,0.00015342,2]
[384314887,1757333449636,-153.351688,0.00015342,2]
[384314888,1757333449645,-480.0,0.00015342,2]
[384314889,1757333449655,-480.0,0.00015342,2]
[384314890,1757333449665,-480.0,0.00015342,2]
[384314891,1757333449674,-480.0,0.00015342,2]
[384314892,1757333449683,-344.86,0.00015342,2]
[384314893,1757333449693,-480.0,0.00015342,2]
[384314894,1757333449702,-801.1,0.00015342,2]
[384314895,1757333449714,-480.0,0.00015342,2]
[384314896,1757333449723,-1766.34,0.00015342,2]
[384314897,1757333449733,-252.67,0.00015342,2]
[384314898,1757333449742,-557.24,0.00015342,2]
[384314899,1757333449751,-480.0,0.00015342,2]
[384314900,1757333449761,-280.06,0.00015342,2]
[384314901,1757333449771,-571.77,0.00015342,2]
[384314902,1757333449780,-454.28,0.00015342,2]
[384314903,1757333449790,-480.0,0.00015342,2]
[384314905,1757333449799,-480.0,0.00015342,2]
[384314907,1757333449810,-480.0,0.00015342,2]
[384314909,1757333449821,-1500.0,0.00015348,2]
[384314911,1757333449831,-288.94226069,0.00015348,2]
[384314913,1757333449840,-1500.0,0.00015387,2]
[384314915,1757333449849,-480.0,0.00015616,2]
[384314917,1757333449858,-701.87,0.00015616,2]
[384314919,1757333449868,-1161.48,0.00015616,2]
[384314921,1757333449877,-637.67,0.00015616,2]
[384314923,1757333449886,-480.0,0.00015616,2]
[384314925,1757333449896,-535.75,0.00015616,2]
[384314927,1757333449905,-518.28,0.00015616,2]
[384314929,1757333449915,-480.0,0.00015616,2]
[384314931,1757333449924,-2079.34,0.00015616,2]
[384314933,1757333449933,-480.0,0.00015616,2]
[384314935,1757333449943,-516.45,0.00015616,2]
[384314937,1757333449952,-480.0,0.00015616,2]
[384314939,1757333449961,-480.0,0.00015616,2]
[384314941,1757333449970,-480.0,0.00015616,2]
[384314943,1757333449980,-470.17,0.00015616,2]
[384314945,1757333449989,-801.1,0.00015616,2]
[384314947,1757333449999,-480.0,0.00015616,2]
[384314949,1757333450009,-1766.34,0.00015616,2]
[384314951,1757333450019,-557.24,0.00015616,2]
[384314953,1757333450028,-480.0,0.00015616,2]
[384314955,1757333450038,-571.77,0.00015616,2]
[384314957,1757333450048,-480.0,0.00015616,2]
[384314959,1757333450057,-480.0,0.00015616,2]
[384314961,1757333450069,-360.0,0.00015856,2]
[384314963,1757333450078,-619.86,0.0001589,2]
[384314965,1757333450088,-701.87,0.0001589,2]
[384314967,1757333450097,-1161.48,0.0001589,2]
[384314969,1757333450107,-637.67,0.0001589,2]
[384314971,1757333450117,-480.0,0.0001589,2]
[384314973,1757333450128,-535.75,0.0001589,2]
[384314975,1757333450138,-518.28,0.0001589,2]
[384314977,1757333450150,-480.0,0.0001589,2]
[384314980,1757333450160,-2079.34,0.0001589,2]
[384314981,1757333450169,-480.0,0.0001589,2]
[384314983,1757333450178,-480.0,0.0001589,2]
[384314985,1757333450188,-480.0,0.0001589,2]
[384314987,1757333450198,-480.0,0.0001589,2]
[384314990,1757333450208,-801.1,0.0001589,2]
[384314992,1757333450218,-538.6,0.0001589,2]
[384314994,1757333450229,-1766.34,0.0001589,2]
[384314996,1757333450239,-557.24,0.0001589,2]
[384314998,1757333450249,-480.0,0.0001589,2]
[384315000,1757333450258,-571.77,0.0001589,2]
[384315002,1757333450268,-493.96331499,0.0001589,2]
[384315004,1757333450277,-480.0,0.0001589,2]
[384315006,1757333450286,-2000.0,0.00015896,2]
[384315008,1757333450296,-2351.0,0.00015923,2]
[384315010,1757333450306,-587.0,0.00015923,2]
[384315012,1757333450317,-2000.0,0.00015935,2]
[384315014,1757333450326,-767.63920648,0.00015945,2]
[384315016,1757333450336,-2351.0,0.00016027,2]
[384315018,1757333450345,-409.0,0.000161,2]
[384315020,1757333450354,-701.87,0.00016164,2]
[384315022,1757333450364,-1161.48,0.00016164,2]
[384315024,1757333450373,-637.67,0.00016164,2]
[384315026,1757333450383,-480.0,0.00016164,2]
[384315028,1757333450393,-535.75,0.00016164,2]
[384315030,1757333450402,-518.28,0.00016164,2]
[384315032,1757333450412,-453.3896781,0.00016164,2]
[384315034,1757333450421,-2079.34,0.00016164,2]
[384315036,1757333450431,-480.0,0.00016164,2]
[384315038,1757333450440,-480.0,0.00016164,2]
[384315040,1757333450450,-480.0,0.00016164,2]
[384315042,1757333450460,-480.0,0.00016164,2]
[384315044,1757333450469,-801.1,0.00016164,2]
[384315046,1757333450479,-1766.34,0.00016164,2]
[384315048,1757333450489,-557.24,0.00016164,2]
[384315050,1757333450499,-480.0,0.00016164,2]
[384315052,1757333450509,-571.77,0.00016164,2]
[384315054,1757333450519,-480.0,0.00016164,2]
[384315056,1757333450528,-460.0,0.00016404,2]
[384315058,1757333450538,-701.87,0.00016438,2]
[384315060,1757333450547,-1161.48,0.00016438,2]
[384315062,1757333450557,-637.67,0.00016438,2]
[384315064,1757333450567,-480.0,0.00016438,2]
[384315066,1757333450576,-535.75,0.00016438,2]
[384315068,1757333450586,-518.28,0.00016438,2]
[384315070,1757333450596,-2079.34,0.00016438,2]
[384315072,1757333450606,-480.0,0.00016438,2]
[384315074,1757333450615,-480.0,0.00016438,2]
[384315077,1757333450626,-506.37,0.00016438,2]
[384315078,1757333450635,-480.0,0.00016438,2]
[384315081,1757333450645,-801.1,0.00016438,2]
[384315083,1757333450655,-1766.34,0.00016438,2]
[384315085,1757333450665,-557.24,0.00016438,2]
[384315087,1757333450674,-480.0,0.00016438,2]
[384315089,1757333450685,-571.77,0.00016438,2]
[384315091,1757333450694,-480.0,0.00016438,2]
[384315093,1757333450703,-2500.0,0.00016444,2]
[384315095,1757333450713,-1000.0,0.00016483,2]
[384315097,1757333450722,-500.0,0.00016518,2]
[384315099,1757333450731,-701.87,0.00016712,2]
[384315100,1757333450741,-1161.48,0.00016712,2]
[384315101,1757333450750,-637.67,0.00016712,2]
[384315102,1757333450759,-480.0,0.00016712,2]
[384315103,1757333450769,-535.75,0.00016712,2]
[384315104,1757333450778,-518.28,0.00016712,2]
[384315105,1757333450788,-2079.34,0.00016712,2]
[384315106,1757333450797,-480.0,0.00016712,2]
[384315107,1757333450807,-480.0,0.00016712,2]
[384315108,1757333450816,-480.0,0.00016712,2]
[384315109,1757333450826,-801.1,0.00016712,2]
[384315110,1757333450836,-1766.34,0.00016712,2]
[384315111,1757333450846,-557.24,0.00016712,2]
[384315112,1757333450856,-480.0,0.00016712,2]
[384315113,1757333450865,-571.77,0.00016712,2]
[384315114,1757333450875,-480.0,0.00016712,2]
[384315115,1757333450885,-864.0,0.000168,2]
[384315116,1757333450894,-560.0,0.00016952,2]
[384315117,1757333450904,-701.87,0.00016986,2]
[384315118,1757333450914,-1161.48,0.00016986,2]
[384315119,1757333450923,-637.67,0.00016986,2]
[384315120,1757333450933,-480.0,0.00016986,2]
[384315121,1757333450943,-535.75,0.00016986,2]
[384315122,1757333450952,-518.28,0.00016986,2]
[384315123,1757333450962,-2079.34,0.00016986,2]
[384315124,1757333450972,-480.0,0.00016986,2]
[384315125,1757333450982,-480.0,0.00016986,2]
[384315126,1757333450991,-598.23,0.00016986,2]
[384315127,1757333451002,-801.1,0.00016986,2]
[384315128,1757333451013,-1766.34,0.00016986,2]
[384315129,1757333451024,-557.24,0.00016986,2]
[384315130,1757333451035,-480.0,0.00016986,2]
[384315131,1757333451046,-571.77,0.00016986,2]
[384315132,1757333451058,-480.0,0.00016986,2]
[384315133,1757333451075,-246.38443221,0.00016992,2]
[384315134,1757333451087,-500.0,0.00017172,2]
[384315135,1757333451098,-701.87,0.0001726,2]
[384315136,1757333451108,-1161.48,0.0001726,2]
[384315137,1757333451123,-637.67,0.0001726,2]
[384315138,1757333451135,-480.0,0.0001726,2]
[384315139,1757333451146,-535.75,0.0001726,2]
[384315140,1757333451161,-518.28,0.0001726,2]
[384315141,1757333451173,-2079.34,0.0001726,2]
[384315142,1757333451184,-480.0,0.0001726,2]
[384315143,1757333451197,-480.0,0.0001726,2]
[384315144,1757333451209,-801.1,0.0001726,2]
[384315145,1757333451223,-1766.34,0.0001726,2]
[384315146,1757333451234,-557.24,0.0001726,2]
[384315147,1757333451246,-480.0,0.0001726,2]
[384315148,1757333451257,-571.77,0.0001726,2]
[384315149,1757333451269,-480.0,0.0001726,2]
[384315150,1757333451280,-823.0,0.00017457,2]
[384315151,1757333451291,-3292.0,0.00017458,2]
[384315152,1757333451303,-168.0,0.00017491,2]
[384315153,1757333451320,-660.0,0.000175,2]
[384315154,1757333451334,-701.87,0.00017534,2]
[384315155,1757333451345,-1161.48,0.00017534,2]
[384315156,1757333451356,-637.67,0.00017534,2]
[384315157,1757333451369,-480.0,0.00017534,2]
[384315158,1757333451380,-535.75,0.00017534,2]
[384315159,1757333451390,-518.28,0.00017534,2]
[384315160,1757333451504,-2079.34,0.00017534,2]
[384315161,1757333451514,-480.0,0.00017534,2]
[384315162,1757333451524,-480.0,0.00017534,2]
[384315163,1757333451534,-801.1,0.00017534,2]
[384315164,1757333451544,-1766.34,0.00017534,2]
[384315165,1757333451553,-557.24,0.00017534,2]
[384315166,1757333451567,-480.0,0.00017534,2]
[384315167,1757333451576,-571.77,0.00017534,2]
[384315168,1757333451586,-480.0,0.00017534,2]
[384315169,1757333451595,-168.0,0.00017592,2]
[384315170,1757333451605,-168.0,0.00017625,2]
[384315171,1757333451614,-2499.0,0.0001763,2]
[384315172,1757333451623,-168.0,0.00017684,2]
[384315173,1757333451633,-168.0,0.00017704,2]
[384315174,1757333451642,-168.0,0.00017757,2]
[384315175,1757333451653,-168.0,0.00017762,2]
[384315176,1757333451662,-168.0,0.0001777,2]
[384315177,1757333451671,-701.87,0.00017808,2]
[384315178,1757333451681,-1161.48,0.00017808,2]
[384315179,1757333451691,-637.67,0.00017808,2]
[384315180,1757333451701,-480.0,0.00017808,2]
[384315181,1757333451710,-535.75,0.00017808,2]
[384315182,1757333451719,-518.28,0.00017808,2]
[384315183,1757333451728,-2079.34,0.00017808,2]
[384315184,1757333451737,-480.0,0.00017808,2]
[384315185,1757333451747,-480.0,0.00017808,2]
[384315186,1757333451756,-801.1,0.00017808,2]
[384315187,1757333451765,-1766.34,0.00017808,2]
[384315188,1757333451775,-557.24,0.00017808,2]
[384315189,1757333451784,-480.0,0.00017808,2]
[384315190,1757333451794,-571.77,0.00017808,2]
[384315191,1757333451803,-480.0,0.00017808,2]
[384315192,1757333451816,-596.31406564,0.00017836,2]
[384315193,1757333451825,-168.0,0.00017872,2]
[384315194,1757333451835,-168.0,0.00017919,2]
[384315195,1757333451844,-168.0,0.00017961,2]
[384315196,1757333451853,-500.0,0.00018031,2]
[384315197,1757333451863,-168.0,0.00018035,2]
[384315198,1757333451872,-760.0,0.00018048,2]
[384315199,1757333451881,-168.0,0.00018055,2]
[384315200,1757333451891,-179.89206476,0.0001808,2]
[384315201,1757333451900,-701.87,0.00018082,2]
[384315202,1757333451909,-1161.48,0.00018082,2]
[384315203,1757333451919,-637.67,0.00018082,2]
[384315204,1757333451928,-480.0,0.00018082,2]
[384315205,1757333451937,-535.75,0.00018082,2]
[384315206,1757333451947,-518.28,0.00018082,2]
[384315207,1757333451956,-2079.34,0.00018082,2]
[384315209,1757333451965,-480.0,0.00018082,2]
[384315211,1757333451975,-151.0,0.00018082,2]
[384315213,1757333451984,-151.0,0.00018082,2]
[384315215,1757333451993,-151.0,0.00018082,2]
[384315216,1757333452003,-151.0,0.00018082,2]
[384315218,1757333452012,-212.737744,0.00018082,2]
[384315219,1757333452021,-153.351688,0.00018082,2]
[384315220,1757333452031,-153.351688,0.00018082,2]
[384315221,1757333452040,-153.351688,0.00018082,2]
[384315222,1757333452049,-153.351688,0.00018082,2]
[384315223,1757333452058,-480.0,0.00018082,2]
[384315224,1757333452071,-801.1,0.00018082,2]
[384315225,1757333452080,-1766.34,0.00018082,2]
[384315227,1757333452089,-557.24,0.00018082,2]
[384315229,1757333452099,-480.0,0.00018082,2]
[384315231,1757333452108,-571.77,0.00018082,2]
[384315233,1757333452118,-480.0,0.00018082,2]
[384315235,1757333452128,-5021.4472672,0.00018082,2]
[384315237,1757333452137,-395.304,0.0001812,2]
[384315239,1757333452147,-178.39729066,0.0001812,2]
[384315241,1757333452158,-3067.48626908,0.00018213,2]
[384315243,1757333452167,-500.0,0.00018235,2]
[384315245,1757333452177,-500.0,0.00018235,2]
[384315247,1757333452186,-500.0,0.00018235,2]
[384315249,1757333452196,-336.0,0.00018266,2]
[384315251,1757333452206,-14674.14842806,0.00018299,2]
[384315253,1757333452216,-500.0,0.00018304,2]
[384315255,1757333452226,-500.0,0.00018304,2]
[384315257,1757333452240,-500.0,0.00018304,2]
[384315259,1757333452249,-500.0,0.00018304,2]
[384315261,1757333452259,-500.0,0.00018304,2]
[384315264,1757333452269,-500.0,0.00018304,2]
[384315266,1757333452278,-500.0,0.00018304,2]
[384315267,1757333452287,-500.0,0.00018304,2]
[384315270,1757333452296,-622.39326259,0.00018304,2]
[384315272,1757333452306,-500.0,0.00018304,2]
[384315273,1757333452317,-500.0,0.00018304,2]
[384315275,1757333452326,-500.0,0.00018304,2]
[384315277,1757333452337,-500.0,0.00018304,2]
[384315279,1757333452346,-500.0,0.00018309,2]
[384315281,1757333452356,-500.0,0.00018309,2]
[384315283,1757333452365,-500.0,0.00018309,2]
[384315284,1757333452374,-500.0,0.00018309,2]
[384315285,1757333452383,-500.0,0.00018309,2]
[384315286,1757333452392,-500.0,0.00018309,2]
[384315287,1757333452402,-500.0,0.00018309,2]
[384315288,1757333452411,-500.0,0.00018309,2]
[384315289,1757333452421,-500.0,0.00018309,2]
[384315290,1757333452430,-500.0,0.00018309,2]
[384315291,1757333452440,-500.0,0.00018309,2]
[384315292,1757333452449,-500.0,0.00018309,2]
[384315293,1757333452458,-500.0,0.00018309,2]
[384315294,1757333452467,-500.0,0.00018309,2]
[384315295,1757333452476,-701.87,0.00018356,2]
[384315296,1757333452487,-1161.48,0.00018356,2]
[384315297,1757333452496,-637.67,0.00018356,2]
[384315298,1757333452506,-480.0,0.00018356,2]
[384315299,1757333452515,-535.75,0.00018356,2]
[384315300,1757333452525,-518.28,0.00018356,2]
[384315301,1757333452534,-439.236311,0.00018356,2]
[384315302,1757333452543,-151.0,0.00018356,2]
[384315303,1757333452552,-439.236311,0.00018356,2]
[384315304,1757333452561,-151.0,0.00018356,2]
[384315305,1757333452573,-439.236311,0.00018356,2]
[384315306,1757333452582,-151.0,0.00018356,2]
[384315307,1757333452592,-151.0,0.00018356,2]
[384315308,1757333452601,-439.236311,0.00018356,2]
[384315309,1757333452611,-2079.34,0.00018356,2]
[384315310,1757333452620,-151.0,0.00018356,2]
[384315311,1757333452629,-574.196076,0.00018356,2]
[384315312,1757333452639,-574.196076,0.00018356,2]
[384315313,1757333452648,-574.196076,0.00018356,2]
[384315314,1757333452659,-574.196076,0.00018356,2]
[384315315,1757333452668,-480.0,0.00018356,2]
[384315316,1757333452678,-480.0,0.00018356,2]
[384315317,1757333452688,-801.1,0.00018356,2]
[384315318,1757333452697,-1766.34,0.00018356,2]
[384315319,1757333452707,-557.24,0.00018356,2]
[384315320,1757333452716,-320.21880911,0.00018356,2]
[384315321,1757333452726,-571.77,0.00018356,2]
[384315322,1757333452735,-192.37044951,0.00018356,2]
[384315323,1757333452744,-500.0,0.00018468,2]
[384315324,1757333452753,-1000.0,0.0001848,2]
[384315325,1757333452763,-414.0,0.00018482,2]
[384315326,1757333452772,-557.335555,0.00018493,2]
[384315327,1757333452781,-500.0,0.00018548,2]
[384315328,1757333452791,-500.0,0.00018548,2]
[384315329,1757333452800,-168.0,0.00018552,2]
[384315330,1757333452810,-500.0,0.00018554,2]
[384315331,1757333452820,-500.0,0.00018562,2]
[384315332,1757333452830,-500.0,0.00018562,2]
[384315333,1757333452839,-500.0,0.00018562,2]
[384315334,1757333452848,-168.0,0.00018579,2]
[384315335,1757333452858,-860.0,0.00018596,2]
[384315336,1757333452868,-1000.0,0.000186,2]
[384315337,1757333452877,-1000.0,0.000186,2]
[384315338,1757333452887,-1000.0,0.000186,2]
[384315339,1757333452897,-1000.0,0.000186,2]
[384315340,1757333452906,-1000.0,0.000186,2]
[384315341,1757333452915,-1000.0,0.000186,2]
[384315342,1757333452924,-1000.0,0.000186,2]
[384315343,1757333452933,-1000.0,0.000186,2]
[384315344,1757333452943,-1000.0,0.000186,2]
[384315345,1757333452952,-500.0,0.00018605,2]
[384315346,1757333452961,-500.0,0.00018605,2]
[384315347,1757333452973,-701.87,0.0001863,2]
[384315348,1757333452982,-1161.48,0.0001863,2]
[384315349,1757333452992,-637.67,0.0001863,2]
[384315350,1757333453001,-265.81584302,0.0001863,2]
[384315351,1757333453011,-535.75,0.0001863,2]
[384315352,1757333453020,-518.28,0.0001863,2]
[384315353,1757333453030,-2079.34,0.0001863,2]
[384315354,1757333453039,-480.0,0.0001863,2]
[384315355,1757333453049,-480.0,0.0001863,2]
[384315356,1757333453058,-801.1,0.0001863,2]
[384315357,1757333453069,-1766.34,0.0001863,2]
[384315358,1757333453078,-557.24,0.0001863,2]
[384315359,1757333453087,-571.77,0.0001863,2]
[384315360,1757333453097,-168.0,0.00018646,2]
[384315361,1757333453106,-500.0,0.00018742,2]
[384315362,1757333453115,-500.0,0.00018742,2]
[384315363,1757333453124,-500.0,0.00018742,2]
[384315364,1757333453134,-500.0,0.00018742,2]
[384315365,1757333453144,-591.03125066,0.00018768,2]
[384315366,1757333453155,-168.0,0.00018778,2]
[384315367,1757333453165,-1000.0,0.00018783,2]
[384315368,1757333453175,-1000.0,0.00018783,2]
[384315369,1757333453184,-400.0,0.00018836,26]
[384315370,1757333453193,-1000.0,0.00018852,2]
[384315371,1757333453202,-696.01094553,0.00018852,2]
[384315372,1757333453212,-1000.0,0.00018852,2]
[384315373,1757333453221,-1000.0,0.00018852,2]
[384315374,1757333453232,-1000.0,0.00018852,2]
[384315375,1757333453242,-1000.0,0.00018852,2]
[384315376,1757333453251,-1000.0,0.00018852,2]
[384315377,1757333453261,-1000.0,0.00018852,2]
[384315378,1757333453270,-1000.0,0.00018852,2]
[384315379,1757333453280,-613.4327225,0.00018857,2]
[384315380,1757333453290,-1000.0,0.00018857,2]
[384315381,1757333453299,-1000.0,0.00018857,2]
[384315382,1757333453308,-1000.0,0.00018857,2]
[384315383,1757333453318,-1000.0,0.00018857,2]
[384315384,1757333453328,-941.18174133,0.00018857,2]
[384315385,1757333453338,-1000.0,0.00018857,2]
[384315386,1757333453349,-1000.0,0.00018857,2]
[384315387,1757333453359,-1000.0,0.00018857,2]
[384315388,1757333453368,-1000.0,0.00018857,2]
[384315389,1757333453378,-1000.0,0.00018857,2]
[384315390,1757333453388,-1070.30542376,0.00018857,2]
[384315391,1757333453398,-754.89018701,0.00018857,2]
[384315392,1757333453407,-1000.0,0.00018857,2]
[384315393,1757333453416,-701.87,0.00018904,2]
[384315394,1757333453426,-1161.48,0.00018904,2]
[384315395,1757333453436,-637.67,0.00018904,2]
[384315396,1757333453445,-535.75,0.00018904,2]
[384315397,1757333453454,-518.28,0.00018904,2]
[384315398,1757333453464,-2079.34,0.00018904,2]
[384315399,1757333453474,-191.83465792,0.00018904,2]
[384315400,1757333453483,-480.0,0.00018904,2]
[384315401,1757333453493,-801.1,0.00018904,2]
[384315402,1757333453502,-1766.34,0.00018904,2]
[384315403,1757333453511,-557.24,0.00018904,2]
[384315404,1757333453521,-571.77,0.00018904,2]
[384315405,1757333453530,-168.0,0.00018926,2]
[384315406,1757333453539,-168.0,0.00018938,2]
[384315407,1757333453549,-168.0,0.00018992,2]
[384315408,1757333453559,-4027.0,0.00019,2]
[384315409,1757333453568,-1000.0,0.00019016,2]
[384315410,1757333453578,-1000.0,0.00019096,2]
[384315411,1757333453587,-1000.0,0.00019096,2]
[384315412,1757333453596,-409.0,0.000191,2]
[384315413,1757333453606,-1000.0,0.00019102,2]
[384315414,1757333453615,-1000.0,0.0001911,2]
[384315415,1757333453624,-904.6730517,0.0001911,2]
[384315416,1757333453634,-1701.0,0.0001914,2]
[384315417,1757333453643,-1152.0,0.0001914,2]
[384315418,1757333453652,-960.0,0.00019144,2]
[384315419,1757333453662,-1000.0,0.00019153,2]
[384315420,1757333453671,-967.64828555,0.00019153,2]
[384315421,1757333453680,-168.0,0.00019156,2]
[384315422,1757333453689,-701.87,0.00019178,2]
[384315423,1757333453699,-1161.48,0.00019178,2]
[384315424,1757333453708,-637.67,0.00019178,2]
[384315425,1757333453717,-535.75,0.00019178,2]
[384315426,1757333453816,-518.28,0.00019178,2]
[384315427,1757333453827,-2079.34,0.00019178,2]
[384315428,1757333453836,-480.0,0.00019178,2]
[384315429,1757333453846,-801.1,0.00019178,2]
[384315430,1757333453856,-1766.34,0.00019178,2]
[384315431,1757333453866,-557.24,0.00019178,2]
[384315432,1757333453876,-571.77,0.00019178,2]
[384315433,1757333453885,-151.0,0.00019178,2]
[384315434,1757333453894,-5000.0,0.00019178,2]